Cogmind - Beta 9.1 @@@ ROGUE MODE // 2019.10.31 @ 16:13:51 // Halloween2019/Abominations Player: SHADOWELITE7 Result: Destroyed by Lesser Abomination with EM Pulse Gun Performance ------------- Evolutions (0) 0 Regions Visited (1) 200 Robots Destroyed (1) 5 Value Destroyed (60) 60 Prototype IDs (0) 0 Alien Tech Used (0) 0 Bonus (0) 0 TOTAL SCORE: 265 Bonus ------- None Cogmind --------- Core Integrity 0/250 Matter 295/300 Energy 100/100 System Corruption 13% Temperature Cool (160) Location -10/Materials Parts ------- Power (1) Ion Engine Propulsion (2) Utility (2) Small Storage Unit Weapon (2) Small Laser Inventory (6) Ion Engine Peak State ------------ Power Ion Engine Propulsion Light Treads Light Treads Utility Small Storage Unit High-powered Tractor Beam Weapon Heavy EM Pulse Gun Heavy EM Pulse Gun Inventory Ion Engine Medium Laser Small Laser Light Assault Rifle [Rating: 10] Favorites ----------- Power Ion Engine Engine Ion Engine Propulsion Light Treads Treads Light Treads Utility Small Storage Unit Device High-powered Tractor Beam Storage Small Storage Unit Weapon Medium Laser Energy Gun Medium Laser Ballistic Gun Light Assault Rifle Build | -11 -10 ------- Run | Scr Mat Slots Evolved . | . . Power . | . . Propulsion . | . . Utility . | . . Weapon . | . . Parts Attached 13 | 6 7 Power 1 | 1 . Engine 1 | 1 . Core . | . . Reactor . | . . Propulsion 2 | 2 . Treads 2 | 2 . Leg . | . . Wheel . | . . Hover . | . . Flight . | . . Utility 2 | 1 1 Device 1 | . 1 Storage 1 | 1 . Processor . | . . Hackware . | . . Protection . | . . Artifact . | . . Weapon 8 | 2 6 Energy Gun 6 | 2 4 Energy Cannon . | . . Ballistic Gun 2 | . 2 Ballistic Cannon . | . . Launcher . | . . Special Weapon . | . . Impact Weapon . | . . Slashing Weapon . | . . Piercing Weapon . | . . Special Melee Weapon . | . . Unidentified Prototypes . | . . Parts Lost 8 | . 8 Power . | . . Propulsion 2 | . 2 Utility 1 | . 1 Weapon 5 | . 5 Highest Loss Streak 4 | . 4 Average Slot Usage (%) 79 | . 79 Engine 14 | . 14 Treads 25 | . 25 Device 6 | . 6 Storage 14 | . 14 Energy Gun 10 | . 10 Ballistic Gun 7 | . 7 Naked Turns . | . . Heaviest Build 13 | 12 13 Greatest Support 40 | 40 40 Greatest Overweight (x) 3 | . 3 Average Overweight (x) . | . . Largest Inventory Capacity 6 | 6 6 Average Capacity 5 | 4 6 Most Carried 5 | 3 5 Average Carried 2 | 1 2 Final Capacity 6 | 6 6 Final Carried 2 | 2 1 Class Distribution -------------------- 100% | Mutant Dominant Class ---------------- Mutant | -10/Materials Resources | -11 -10 ----------- Run | Scr Mat Matter Collected 333 | 260 73 Remotely . | . . Salvage Created 75 | . 75 Parts 4 | . 4 Haulers Intercepted . | . . Recyclers Shooed . | . . Parts Field Recycled . | . . Retrieved Matter . | . . Parts Self-Destructed . | . . Prevented . | . . Kills | -11 -10 ------- Run | Scr Mat Combat Hostiles Destroyed 1 | . 1 Guns 1 | . 1 Classes Destroyed 1 | . 1 Abomination 1 | . 1 Best Kill Streak 1 | . 1 Combat Bots Only 1 | . 1 Max Kills in Single Turn 1 | . 1 Gunslinging . | . . Exploded . | . . Melee . | . . Uniques/NPCs Destroyed . | . . Combat | -11 -10 -------- Run | Scr Mat Damage Taken 1203 | . 1203 Core 260 | . 260 Absorbed by Shields . | . . Core Remaining (%) 100 | 100 . Volleys Fired 20 | . 20 Largest 2 | . 2 Hottest 95 | . 95 Shots Fired 35 | . 35 Gun 35 | . 35 Cannon . | . . Launcher . | . . Special . | . . Kinetic 22 | . 22 Thermal 3 | . 3 Explosive . | . . Electromagnetic 10 | . 10 Robot Hit Streak 8 | . 8 Robot Miss Streak 1 | . 1 Penetration Max . | . . Secondary Targets . | . . Shots Hit Robots 25 | . 25 Core Hits 15 | . 15 Critical Hits . | . . Critical Kills . | . . Critical Parts Destroyed . | . . Melee Attacks . | . . Impact . | . . Slashing . | . . Piercing . | . . Sneak Attacks . | . . Combat Hostiles . | . . Follow-up Attacks . | . . Damage Inflicted 208 | . 208 Guns 194 | . 194 Cannons . | . . Explosions . | . . Melee . | . . Ramming 14 | . 14 Kinetic 121 | . 121 Thermal 43 | . 43 Explosive . | . . Electromagnetic 30 | . 30 Impact . | . . Slashing . | . . Piercing . | . . Highest Corruption 13 | . 13 Average Corruption 4 | . 4 Corruption Purged . | . . Effects 8 | . 8 Matter Fused 1 | . 1 Heat Flow Errors 1 | . 1 Energy Discharges 1 | . 1 Data Loss (minor) 3 | . 3 Misdirections 1 | . 1 Targeting Errors 1 | . 1 Overload Shots . | . . Overflow Damage . | . . Projectiles . | . . Explosions . | . . Melee . | . . Knockbacks 2 | . 2 Impact 2 | . 2 Kinetic . | . . Secondary . | . . Self-Inflicted Damage . | . . Shots . | . . Rammed 14 | . 14 Targets Rammed 14 | . 14 Kicked . | . . Crushed . | . . Highest Temperature 237 | . 237 Average Temperature 107 | . 107 Received Heat Transfer . | . . Effects 3 | . 3 Interference 3 | . 3 Siege Activations . | . . Robots Corrupted . | . . Combat Hostiles . | . . Parts Fried . | . . Impact Corruptions . | . . Robots Melted . | . . Combat Hostiles . | . . Parts Melted . | . . Heat Transferred 21 | . 21 Parts Sabotaged . | . . Parts Stolen . | . . Parts Stripped . | . . Power Chain Reactions . | . . Missiles Intercepted . | . . Alert | -11 -10 ------- Run | Scr Mat Peak Influence 15 | . 15 Average Influence 2 | . 2 Maximum Alert Level . | . . Low Security (%) 100 | . . Level 1 . | . . Level 2 . | . . Level 3 . | . . Level 4 . | . . Level 5 . | . . High Security . | . . Max Security . | . . Squads Dispatched 5 | . 5 Investigation . | . . Extermination . | . . Reinforcement 2 | . 2 Assault 3 | . 3 Garrison . | . . Intercept . | . . Construction Impeded . | . . Haulers Reinforced . | . . Stealth | -11 -10 --------- Run | Scr Mat Distress Signals 2 | . 2 Communications Jammed . | . . Distress Signals . | . . Times Spotted 7 | . 7 Peak Tracking Total 4 | . 4 Tactical Retreats 2 | . 2 Traps | -11 -10 ------- Run | Scr Mat Traps Triggered . | . . Indirectly . | . . Trap Hack Attempts . | . . Triggered . | . . Disarmed . | . . Reprogrammed . | . . Reused . | . . Traps Extracted . | . . Installed . | . . Triggered . | . . Machines | -11 -10 ---------- Run | Scr Mat Machines Disabled . | . . Max in Single Turn . | . . Machines Sabotaged . | . . Garrisons Compromised . | . . Overloaded Fab Kills . | . . Fab Network Shutdowns . | . . Hacking | -11 -10 --------- Run | Scr Mat Machines Accessed 1 | . 1 Terminals 1 | . 1 Fabricators . | . . Repair Stations . | . . Recycling Units . | . . Scanalyzers . | . . Garrison Access . | . . Total Hacks 2 | . 2 Successful 1 | . 1 Failed 1 | . 1 Catastrophic . | . . Database Lockouts . | . . Manual . | . . Terminals 2 | . 2 Fabricators . | . . Repair Stations . | . . Recycling Units . | . . Scanalyzers . | . . Garrison Access . | . . Terminal Hacks 1 | . 1 Patrol Status 1 | . 1 Fabricator Hacks . | . . Repair Station Hacks . | . . Recycling Unit Hacks . | . . Scanalyzer . | . . Garrison Access Hacks . | . . Unauthorized Hacks . | . . Terminals . | . . Fabricators . | . . Repair Stations . | . . Recycling Units . | . . Scanalyzers . | . . Garrison Access . | . . Data Cores Recovered . | . . Used . | . . Hacking Detections 1 | . 1 Full Trace Events . | . . Feedback Events . | . . Feedback Blocked . | . . Robot Schematics Acquired . | . . Robots Built . | . . Matter . | . . Time . | . . Total Robot Build Rating . | . . Part Schematics Acquired . | . . Parts Built . | . . Matter . | . . Time . | . . Total Part Build Rating . | . . Parts Repaired . | . . Time . | . . Parts Recycled . | . . Recycled Matter . | . . Retrieved Matter . | . . Retrieved Components . | . . Parts Scanalyzed . | . . Part Schematics Acquired . | . . Parts Damaged . | . . Bothacking | -11 -10 ------------ Run | Scr Mat Used RIF Installer . | . . Robots Hacked . | . . Non-combat . | . . Combat . | . . Robot Hacks Applied . | . . Relay Couplers Released . | . . Robots Rewired . | . . Allies Hacked . | . . Hacks Repelled . | . . Allies | -11 -10 -------- Run | Scr Mat Total Allies . | . . Largest Group . | . . Highest-Rated Group . | . . Highest-Rated Ally . | . . Total Orders . | . . Ally Attacks . | . . Total Damage . | . . Kills . | . . Allies Corrupted . | . . Allies Melted . | . . Intel | -11 -10 ------- Run | Scr Mat Robot Analysis Total . | . . Derelict Logs Recovered . | . . Drone Launches . | . . Drone Recoveries . | . . Exploration | -11 -10 ------------- Run | Scr Mat Turns Passed 441 | 92 349 Spaces Moved 216 | 51 165 Core 10 | 2 8 Treads 206 | 49 157 Legs . | . . Wheels . | . . Hover . | . . Flight . | . . Fastest Speed 50 | 50 150 Average Speed 159 | 155 160 Slowest Speed 200 | 160 200 Overloaded Moves . | . . Propulsion Burnouts . | . . Robots Hopped . | . . Cave-ins Triggered . | . . Exploration Rate (%) 16 | 4 29 Regions Visited 1 Branch Regions . Pre-discovered Areas . | . . Known Exits Taken . | . . Unknown Exits Taken 1 | 1 . Scrap Searched . | . . Spaces Dug . | . . Terrain Destroyed . | . . Melee . | . . Projectile . | . . AOE . | . . Actions | -11 -10 --------- Run | Scr Mat Total 276 | 64 212 Wait . | . . Move 215 | 50 165 Hop . | . . Pick Up 12 | 8 4 Fast Attach . | . . Attach 13 | 6 7 Detach 2 | . 2 Swap . | . . Drop . | . . Fire 20 | . 20 Melee . | . . Ram 4 | . 4 Kick . | . . Crush 10 | . 10 Escape Stasis . | . . Rewire . | . . Trap . | . . Miscellaneous . | . . Route ------- -11/Scrapyard -10/Materials History --------- Turn | Location | Event 8 | -11/Scrapyard | Discovered new exit (range 15) 93 | -11/Scrapyard | Entered Materials 270 | -10/Materials | Lost 3 parts (3w) 327 | -10/Materials | Build established: Mutant 384 | -10/Materials | Core integrity fell below 50% 409 | -10/Materials | System corruption reached 10% 427 | -10/Materials | Core integrity fell below 20% 442 | -10/Materials | Destroyed by Lesser Abomination with EM Pulse Gun Last Messages --------------- 00392_ System corrupted: Heat flow error (+133). 00395_ Lgt. Assault Rifle destroyed. 00404_ Slammed into Lesser Abomination. 00408_ ALERT: Dispatching additional forces to engage threats. 00409_ Slammed into Lesser Abomination. 00409_ Lesser Abomination knocked back. 00410_ Slammed into Lesser Abomination. 00410_ Lesser Abomination knocked back. 00412_ Slammed into Lesser Abomination. 00414_ Lgt. Treads destroyed. 00415_ Slammed into Lesser Abomination. 00418_ Lgt. Treads destroyed. 00418_ Slammed into Lesser Abomination. 00423_ Destabilizing: Short circuit. 00423_ Ion Engine permanently disabled. 00426_ System corrupted: Energy discharge (-20). 00434_ Acquired 3 matter. 00434_ Acquired 2 matter. 00436_ Lesser Abomination misfires. 00440_ System corrupted: Sml. Laser targeting data glitched. Map ----- +----------------------------------------------------+ | | | | | | | | | ?????????????????????????????????????????????????? | | ##????????????????????#########??????????????????? | | [#????????????????????# #????????????????? | | [#????????????????????# """ """ #????????????????? | | #???????############## """ """ #????????????????? | | #########""##T## " """ """ #????????????????? | | " """ """ ###??????????????? | | " " #??????????????? | | """"" % ! " " #??????????????? | | ""T"" """"["" " " #??????????????? | | " ###############"" #??????????????? | | " ##### |# #??????????????? | | " #???# ! #####??????????????? | | " #???# ! ##?????????????????? | | " #???# " " ##?????????????????? | | " #???# "R" ##?????????????????? | | """ " #???# """ #??????????????????? | | """ "############/#######??????????????????? | | " " ## !%!% ##????????????????????? | | "# % ! %##????????????????????? | | "# %%%% ##????????????????????? | | "# %@%##????????????????????? | | "# A%#????????????????????? | | """ "# ##????????????????????? | | """ A ###???????????????????? | | """ # ?????????????????? | | """ # ??????????????? | | """? /] # """ ?????????????? | | ???? n %] #"""""! ?????????????? | | ????? """ ]/ #"""""? ?????????????? | | ?????" " #"""???? ?????????????? | | ?????### %# "???????????????????? | | ???????# # ???????????????????? | | ???????# #### #""???????????????????? | | ????????? ?""# ??????????????????? | | ???????????????????# ???????????????????? | | ???????????????????# ??????????????????????? | | ???????????????????? % ????????????????????????? | | ?????????????????????????????????????????????????? | | ?????????????????????????????????????????????????? | | ?????????????????????????????????????????????????? | | ?????????????????????????????????????????????????? | | ?????????????????????????????????????????????????? | | ?????????????????????????????????????????????????? | | ?????????????????????????????????????????????????? | | ?????????????????????????????????????????????????? | +----------------------------------------------------+ Best States ------------- Heat Dissipation 25 Energy Generation 10 Energy Capacity 250 Matter Stores 300 Matter Capacity 300 Sight Range 16 Terrain Scan Density 10 Evasion (%) 40 Recoil Reduction 2 Item Schematics ----------------- None Robot Schematics ------------------ None Fabricated ------------ Nothing Alien Tech Used ----------------- None Achievements -------------- None Challenges ------------ None Game ------ Seed AbsorptionTiamatJammer Manual? 0 Play Time 00:07:08 Cumulative 12.3 hours Start 2019.10.31 @ 16:08:20 End 2019.10.31 @ 16:13:51 Sessions 1 Manual Loads 0 Difficulty Rogue Special Mode Halloween2019/Abominations Game No. 53 Rogue 53 Adventurer 0 Explorer 3 Win Type - Total 0 Types 0/0/0/0/0/0/0 Lore% 15 Gallery% 15 Achievement% 12 Wizard Run 0 Options --------- ASCII 0 Keyboard 0 Movement Arrows Keybinds 0 Fullscreen 0 Font 14/Terminus Map View 76x50 Tactical HUD 1 Map Filters NONE Filters NONE Steam 1 RUN: c907faa0-1bb8-4f5a-9f81-0645a4c4cd08